bitfinex/quotes_ETHUSD_20240811
["timestamp","ask_amount","ask_price","bid_price","bid_amount"]
[1723395718415,2.65548,2636.1,2635.2,2.65624]
[1723395718416,2.43629065,2636.0,2635.5,2.65603]
[1723395718762,2.43629065,2636.0,2634.6,5.37787]
[1723395718763,2.3602,2636.0,2635.9,2.65563]
[1723395719255,2.3602,2636.0,2635.6,0.07587154]
[1723395719256,2.3602,2636.0,2635.6,2.65586]
[1723395719422,2.3602,2636.0,2635.7,2.65578]
[1723395719961,2.3602,2636.0,2635.8,2.65573]
[1723395720933,2.3602,2636.0,2635.6,5.31173]
[1723395721259,2.3602,2636.0,2635.9,2.65563]
[1723395721960,0.1258174,2636.2,2636.0,2.6555]
[1723395722160,2.3602,2635.8,2635.3,2.65617]
[1723395722360,2.65599,2635.6,2634.6,5.37791]
[1723395722563,0.07609065,2635.7,2634.3,3.27276653]
[1723395722564,2.73214065,2635.5,2634.9,2.65656]
[1723395722866,2.3602,2635.8,2635.1,2.65642]
[1723395722867,2.73200065,2635.7,2635.1,2.65642]
[1723395723232,2.73198065,2635.7,2635.0,2.65645]
[1723395723432,2.73195065,2635.7,2635.1,2.65638]
[1723395723759,2.73195065,2635.7,2635.2,2.65627]
[1723395723760,0.07609065,2635.7,2635.2,2.65627]
[1723395724084,2.3602,2635.3,2634.4,2.65714]
[1723395724407,0.07609065,2635.2,2634.5,2.65703]
[1723395724518,0.07609065,2635.2,2634.3,2.65715]
[1723395724519,2.65665,2634.9,2634.3,2.65715]
[1723395724717,0.07609065,2634.8,2634.3,5.31434]
[1723395724963,0.07609065,2634.8,2634.4,2.65711]
[1723395725269,0.07609065,2634.9,2634.0,2.65752]
[1723395725422,2.3602,2635.5,2635.1,2.65638]
[1723395725623,2.861809,2635.5,2634.9,5.31317]
[1723395725925,2.861809,2635.5,2635.0,2.65651]
[1723395726124,0.07609065,2635.4,2635.0,2.65651]
[1723395726319,2.73224065,2635.4,2634.9,2.65655]
[1723395726536,5.01626,2635.5,2634.9,5.31313]
[1723395726753,2.3602,2635.5,2635.0,2.65648]
[1723395727062,5.09234065,2635.5,2635.0,2.65648]
[1723395727243,8.25004865,2635.5,2635.0,2.65648]
[1723395727413,5.59394865,2635.5,2635.0,2.65648]
[1723395727616,2.93789865,2635.5,2635.0,5.31296]
[1723395727859,2.93789865,2635.5,2635.0,2.65648]
[1723395728062,5.59395865,2635.5,2634.8,5.31335]
[1723395728368,5.59395865,2635.5,2634.6,2.65688]
[1723395728369,2.3521,2635.1,2634.6,2.65688]
[1723395728723,2.3521,2635.1,2634.8,2.65665]
[1723395729247,5.31139,2635.9,2635.1,2.65642]
[1723395729562,5.08394065,2635.8,2635.1,5.31276]
[1723395729732,2.73194065,2635.7,2635.2,2.65633]
[1723395730223,2.65585,2635.7,2635.2,2.65633]
[1723395730427,0.07609065,2635.6,2635.2,2.65633]
[1723395730625,0.07609065,2635.6,2635.3,2.65624]
[1723395730935,2.3521,2635.5,2635.1,2.65634]
[1723395732238,0.07609065,2635.4,2635.1,2.65634]
[1723395732433,2.3521,2635.5,2635.2,2.65633]
[1723395733177,2.3521,2635.5,2635.1,2.65634]
[1723395733641,5.08423065,2635.5,2634.9,2.65657]
[1723395733973,2.42819065,2635.5,2634.9,5.31315]
[1723395734384,2.42819065,2635.5,2635.0,2.65648]
[1723395734685,2.3521,2635.4,2634.7,2.65677]
[1723395734835,0.07609065,2635.3,2634.7,2.65677]
[1723395735032,2.3521,2635.2,2634.7,2.65677]
[1723395735272,0.07609065,2635.1,2634.7,2.65677]
[1723395736049,2.73254065,2635.1,2634.5,2.65696]
[1723395736233,2.3521,2635.0,2634.4,2.65705]
[1723395736544,3.34050286,2635.1,2634.3,2.65723]
[1723395736545,2.3521,2634.7,2634.3,2.65723]
[1723395736750,0.07609065,2634.6,2634.3,2.65723]
[1723395737161,0.07609065,2634.6,2634.1,2.65739]
[1723395737897,5.00923,2634.5,2633.9,2.65759]
[1723395738176,0.07609065,2634.4,2633.9,2.65759]
[1723395738336,0.07609065,2634.4,2634.0,2.6575]
[1723395738536,0.07609065,2634.4,2634.1,2.65739]
[1723395738983,2.73326065,2634.4,2633.4,5.31619]
[1723395739137,0.07609065,2634.4,2634.0,2.65748]
[1723395740065,2.73325065,2634.4,2633.8,5.31539]
[1723395740580,2.73325065,2634.4,2633.9,2.65765]
[1723395741168,5.00935,2634.3,2633.8,5.31536]
[1723395741371,0.07609065,2634.2,2633.8,2.65766]
[1723395742482,0.07609065,2634.2,2633.5,3.0]
[1723395742682,9.6221,2634.7,2634.5,2.65703]
[1723395742896,2.3521,2634.7,2634.5,2.65703]
[1723395743617,2.3521,2634.7,2634.4,2.65714]
[1723395743781,2.42819065,2635.0,2634.8,2.65669]
[1723395743982,2.3521,2635.0,2634.9,2.65664]
[1723395745110,2.42819065,2635.0,2634.1,3.0]
[1723395745400,2.3521,2635.0,2634.2,0.07590771]
[1723395745713,2.3521,2635.0,2634.9,2.65664]
[1723395745900,2.3521,2635.0,2634.7,5.31355]
[1723395746417,2.3521,2635.0,2634.8,2.65673]
[1723395746912,2.3521,2635.0,2634.7,2.65676]
[1723395747369,2.4758,2635.3,2634.6,0.07590772]
[1723395747513,2.4758,2635.3,2635.2,2.65634]
[1723395748026,2.4758,2635.3,2635.1,2.65642]
[1723395748228,0.07609065,2635.2,2634.7,2.65678]
[1723395748419,0.07609065,2635.2,2634.8,2.65669]
[1723395748619,2.73243065,2635.2,2634.7,2.65678]
[1723395749029,2.73243065,2635.2,2634.7,5.31357]
[1723395749234,2.73243065,2635.2,2634.7,2.65678]
[1723395749521,3.51886971,2635.2,2634.6,2.65687]
[1723395749728,3.51886971,2635.2,2634.7,2.65682]
[1723395750065,3.51886971,2635.2,2634.7,2.65679]
[1723395750360,2.4758,2635.1,2634.7,2.65684]
[1723395750650,0.07609065,2635.0,2634.7,2.65684]
[1723395752073,2.4758,2635.9,2635.8,2.65574]
[1723395752217,2.4758,2635.9,2635.8,5.31148]
[1723395752847,2.6016174,2636.2,2635.9,2.65557]
[1723395753156,2.6016174,2636.2,2636.0,2.65547]
[1723395753461,2.6016174,2636.2,2636.1,2.65543]
[1723395753626,2.6016174,2636.2,2635.9,2.65555]
[1723395753821,7.36760194,2636.2,2635.5,2.65604]
[1723395754022,2.4758,2636.1,2634.9,3.628]
[1723395754237,2.65569,2635.9,2635.4,2.65613]
[1723395754533,2.4758,2636.0,2635.0,3.0]
[1723395754775,3.93957119,2636.0,2635.5,2.65597]
[1723395755063,6.59511119,2636.0,2635.5,2.65597]
[1723395755361,2.65564,2635.9,2635.4,2.65613]
[1723395755572,5.13154,2635.8,2635.3,2.65624]
[1723395755723,2.4758,2635.8,2635.3,2.65624]
[1723395755920,2.4758,2635.8,2635.7,2.65584]
[1723395756119,2.4758,2635.8,2635.7,5.31168]
[1723395756418,7.27,2636.1,2635.9,2.65558]
[1723395756419,9.7458,2636.1,2635.9,2.65558]
[1723395756660,9.7458,2636.1,2636.0,2.65553]
[1723395756960,2.4758,2636.1,2636.0,5.31106]
[1723395757172,2.4758,2636.1,2635.6,2.65591]
[1723395757173,0.1258174,2636.2,2636.1,5.31086]
[1723395758148,0.1258174,2636.2,2636.1,2.65543]
[1723395759024,0.1258174,2636.2,2635.9,5.31112]
[1723395759370,0.1258174,2636.2,2636.1,2.65543]
[1723395759557,0.1258174,2636.2,2635.9,5.3111]
[1723395759857,0.1258174,2636.2,2636.0,2.6555]
[1723395760975,0.1258174,2636.2,2636.0,2.65553]
[1723395761534,0.1258174,2636.2,2635.9,2.65563]
[1723395762067,0.1258174,2636.2,2636.1,2.65543]
[1723395762568,0.1258174,2636.2,2636.1,5.31086]
[1723395763227,0.1258174,2636.2,2636.1,2.65543]
[1723395764071,0.1258174,2636.2,2636.1,5.31086]
[1723395764367,0.1258174,2636.2,2636.1,5.3867242]
[1723395764576,0.1258174,2636.2,2636.1,5.31086]
[1723395764868,0.1258174,2636.2,2636.1,8.04214999]
[1723395766274,0.1258174,2636.2,2636.1,5.31086]
[1723395766647,0.1258174,2636.2,2636.1,8.04214325]
[1723395768333,0.1258174,2636.2,2636.1,5.38671325]
[1723395768580,0.1258174,2636.2,2636.1,5.31086]
[1723395769074,0.1258174,2636.2,2636.1,2.65543]
[1723395769273,0.1258174,2636.2,2636.1,5.31086]
[1723395769432,0.1258174,2636.2,2636.1,7.74206]
[1723395769671,0.1258174,2636.2,2636.1,13.39749]
[1723395769936,0.1258174,2636.2,2636.1,10.96629]
[1723395770216,0.1258174,2636.2,2636.0,2.65546]
[1723395771221,0.1258174,2636.2,2635.9,2.65563]
[1723395771806,0.1258174,2636.2,2635.7,3.0]
[1723395771807,0.1258174,2636.2,2636.0,5.311]
[1723395772108,0.1258174,2636.2,2636.1,2.65543]
[1723395772481,0.1258174,2636.2,2636.0,2.65547]
[1723395772694,0.1258174,2636.2,2636.1,2.65543]
[1723395774318,0.1258174,2636.2,2635.9,2.65561]
[1723395775407,0.1258174,2636.2,2635.9,5.31119]
[1723395775794,0.1258174,2636.2,2635.9,2.65558]
[1723395776200,0.1258174,2636.2,2635.9,5.31116]
[1723395776406,0.1258174,2636.2,2635.9,2.65558]
[1723395778213,0.1258174,2636.2,2636.0,2.65552]
[1723395778417,0.1258174,2636.2,2636.1,2.65543]
[1723395778601,0.1258174,2636.2,2636.1,5.31086]
[1723395780642,0.1258174,2636.2,2636.1,10.96629]
[1723395783654,0.1258174,2636.2,2636.1,8.31086]
[1723395785335,0.1258174,2636.2,2636.1,10.96629]
[1723395787853,0.1258174,2636.2,2636.1,8.31086]
[1723395788156,0.1258174,2636.2,2636.1,10.96629]
[1723395793090,0.1258174,2636.2,2636.1,8.31086]
[1723395793288,0.1258174,2636.2,2636.1,5.31086]
[1723395794607,2.6254174,2636.2,2636.1,5.31086]
[1723395799207,2.6254174,2636.2,2635.8,2.65573]
[1723395799531,2.6254174,2636.2,2636.0,2.65551]
[1723395799733,2.6254174,2636.2,2635.8,2.65567]
[1723395799734,2.88795914,2636.2,2635.8,2.65567]
[1723395800228,2.88795914,2636.2,2635.7,2.65581]
[1723395800597,3.04374914,2636.2,2635.7,2.65581]
[1723395800793,2.4996,2636.1,2635.7,2.65581]
[1723395801430,2.65554,2636.0,2635.6,2.65586]
[1723395801591,5.15514,2636.0,2635.6,2.65586]
[1723395802445,2.4996,2635.7,2635.2,2.65626]
[1723395802795,2.65595,2635.6,2635.0,5.31292]
[1723395802995,2.4996,2635.5,2635.0,2.65644]
[1723395803219,2.4996,2635.5,2634.8,2.6567]
[1723395803426,7.27,2635.8,2635.1,2.65643]
[1723395803427,2.4996,2635.3,2635.1,2.65643]
[1723395804729,2.4996,2635.3,2634.9,2.65655]
[1723395805035,2.4996,2635.3,2635.1,2.65638]
[1723395805198,2.4996,2635.3,2635.2,2.65634]
[1723395806005,2.4996,2635.3,2635.0,2.65646]
[1723395806208,2.4996,2635.6,2635.5,2.65604]
[1723395806526,12.28,2636.1,2635.7,2.65584]
[1723395806527,2.4996,2635.9,2635.7,2.65584]
[1723395807148,2.4996,2635.9,2635.5,5.31191]
[1723395807437,2.4996,2635.9,2635.6,2.65591]
[1723395808345,2.4996,2635.9,2635.7,2.65582]
[1723395809151,2.4996,2635.9,2635.5,2.65596]
[1723395809302,2.281,2635.7,2635.1,2.65638]
[1723395809637,2.281,2635.7,2635.2,2.65629]
[1723395809840,2.65609,2635.5,2634.5,7.71893537]
[1723395810000,2.281,2635.4,2634.9,2.65657]
[1723395810644,4.9373,2635.3,2634.7,5.31355]
[1723395810827,4.93725,2635.3,2634.6,2.65694]
[1723395811047,4.93725,2635.3,2634.7,2.65678]
[1723395811364,2.65637,2635.2,2634.7,2.65683]
[1723395811566,2.281,2635.1,2634.7,2.65683]
[1723395811726,2.281,2635.1,2634.4,2.65708]
[1723395811929,2.281,2635.1,2634.5,3.0]
[1723395812329,4.93746,2635.1,2634.6,2.65692]
[1723395812528,2.281,2635.1,2634.7,2.65675]
[1723395812759,2.281,2635.1,2634.8,2.65674]
[1723395813925,2.281,2635.1,2634.6,5.3896351]
[1723395814132,2.281,2635.1,2634.7,2.65683]
[1723395814966,2.281,2635.1,2634.6,2.65685]
[1723395814967,5.51931699,2635.1,2634.6,2.65685]
[1723395815324,2.86287699,2635.1,2634.6,2.65685]
[1723395815527,2.86287699,2635.1,2634.2,2.65733]
[1723395815764,2.86287699,2635.1,2634.6,2.65689]
[1723395815973,0.5519227,2635.0,2634.6,2.65689]
[1723395817742,2.281,2634.9,2634.4,2.65708]
[1723395817930,1.220709,2635.4,2633.9,2.65758]
[1723395817931,2.281,2634.5,2633.9,2.65758]
[1723395818135,2.281,2634.5,2634.1,5.31485]
[1723395818486,2.281,2634.5,2634.1,2.65741]
[1723395819245,2.7748,2634.5,2634.1,2.65741]
[1723395819467,2.7748,2634.5,2633.9,2.65758]
[1723395819468,5.43193,2634.5,2633.9,2.65757]
[1723395820076,2.65715,2634.4,2633.9,2.65757]
[1723395820384,2.281,2634.2,2633.7,2.65779]
[1723395820567,4.93836,2634.2,2633.7,2.65779]
[1723395820769,5.432196,2634.2,2633.7,2.65779]
[1723395821170,5.432196,2634.2,2633.5,2.65797]
[1723395821343,5.432196,2634.2,2633.6,2.65787]
[1723395821746,2.65745,2634.1,2633.6,2.65787]
[1723395821984,8.089596,2634.2,2633.6,2.65787]
[1723395822353,5.432196,2634.2,2633.6,2.65787]
[1723395822680,3.2007296,2634.1,2633.5,5.31593]
[1723395822888,2.281,2634.0,2633.5,2.65796]
[1723395823245,4.93859,2634.0,2633.5,2.65796]
[1723395823455,7.27,2634.8,2633.6,2.3913]
[1723395823658,2.281,2635.0,2634.9,2.65664]
[1723395823883,2.281,2635.0,2634.9,5.31328]
[1723395824182,7.27,2635.3,2635.1,2.65636]
[1723395824183,9.551,2635.3,2635.1,2.65636]
[1723395824372,9.551,2635.3,2635.2,2.65634]
[1723395824772,9.551,2635.3,2635.1,2.65636]
[1723395824961,9.551,2635.3,2635.1,5.31275]
[1723395825286,9.551,2635.3,2635.1,2.65636]
[1723395825490,9.551,2635.3,2635.2,2.65634]
[1723395826091,9.551,2635.3,2635.1,2.65636]
[1723395826668,9.551,2635.3,2634.9,2.65658]
[1723395826669,9.551,2635.3,2635.0,2.65653]
[1723395827097,9.551,2635.3,2634.9,2.65658]
[1723395827306,2.4743,2635.0,2634.3,2.65718]
[1723395827465,2.4743,2635.0,2634.8,2.65667]
[1723395827975,7.27,2635.2,2634.9,2.65664]
[1723395828295,2.4743,2635.5,2635.1,2.65638]
[1723395828989,2.4743,2635.5,2635.4,2.65614]
[1723395829287,9.7443,2635.9,2635.3,2.65615]
[1723395829515,9.7443,2635.9,2635.5,2.65601]
[1723395829741,9.7443,2635.9,2634.5,8.1584]
[1723395829742,9.7443,2635.9,2635.8,2.65574]
[1723395830005,9.7443,2635.9,2635.3,2.65614]
[1723395830006,12.40001,2635.9,2635.3,2.65614]
[1723395830174,10.71873,2635.9,2635.3,2.65614]
[1723395830377,10.71873,2635.9,2635.6,2.65588]
[1723395830554,9.7443,2635.9,2635.6,2.65588]
[1723395830754,9.7443,2635.9,2635.5,2.65602]
[1723395831852,9.7443,2635.9,2635.6,2.65592]
[1723395832180,2.6001174,2636.2,2635.8,2.65574]
[1723395832792,2.6001174,2636.2,2635.7,0.07588427]
[1723395832979,2.6001174,2636.2,2636.0,2.65548]
[1723395833177,2.6001174,2636.2,2636.1,2.65543]
[1723395833857,2.6001174,2636.2,2636.0,2.65548]
[1723395836921,2.6001174,2636.2,2635.8,2.65565]
[1723395837211,2.6001174,2636.2,2635.8,2.65567]
[1723395837433,2.6001174,2636.2,2635.9,2.65561]
[1723395837621,2.6001174,2636.2,2635.9,5.31119]
[1723395837819,3.12564914,2636.2,2635.5,2.65597]
[1723395837991,3.12564914,2636.2,2635.6,2.65584]
[1723395837992,2.6001174,2636.2,2635.6,2.65584]
[1723395838432,5.2554674,2636.2,2635.6,2.65584]
[1723395839447,2.4743,2636.0,2635.4,2.65608]
[1723395839744,2.90307,2635.9,2635.4,2.65608]
[1723395839947,2.4743,2636.0,2635.5,2.65597]
[1723395840644,2.65579,2635.8,2635.3,2.65616]
[1723395840813,2.4743,2635.7,2635.3,2.65616]
[1723395841516,2.4743,2635.7,2635.4,2.65604]
[1723395843396,2.4743,2635.7,2635.2,2.65625]
[1723395843826,2.4743,2635.7,2635.3,2.65617]
[1723395844310,2.4743,2635.7,2635.4,2.65613]
[1723395844954,2.65607,2635.5,2635.0,2.65651]
[1723395845531,5.31216,2635.5,2635.0,2.65649]
[1723395845768,5.13049,2635.4,2634.8,5.31337]
[1723395846063,3.252956,2635.4,2634.4,0.07590503]
[1723395846275,2.4743,2635.4,2635.0,2.65648]
[1723395846633,2.4743,2635.4,2635.0,5.31297]
[1723395846943,2.4743,2635.4,2635.0,2.65648]
[1723395849659,2.987337,2635.4,2634.8,2.65668]
[1723395849859,2.65625,2635.3,2634.8,2.65668]
[1723395850061,2.65625,2635.3,2634.8,5.31337]
[1723395851857,2.65625,2635.3,2634.8,2.65668]
[1723395853902,2.65625,2635.3,2634.8,5.31337]
[1723395854260,2.65625,2635.3,2634.8,2.65668]
[1723395854696,3.434915,2635.3,2634.8,2.65668]
[1723395855376,3.434915,2635.3,2634.6,2.65687]
[1723395855377,2.65644,2635.1,2634.6,2.65687]
[1723395855578,5.31294,2635.1,2634.6,2.65687]
[1723395855764,2.65644,2635.1,2634.6,2.65692]
[1723395856587,2.3324,2635.2,2634.7,2.65678]
[1723395856789,2.3324,2635.2,2634.8,2.65669]
[1723395856991,2.3324,2635.2,2634.7,2.65678]
[1723395857876,2.3324,2635.2,2634.7,5.31357]
[1723395858303,2.831268,2635.2,2634.7,2.65678]
[1723395858669,2.831268,2635.2,2634.7,5.31357]
[1723395859506,2.831268,2635.2,2634.7,2.65678]
[1723395860046,5.487678,2635.2,2634.7,2.65678]
[1723395860202,4.98889,2635.1,2634.5,2.65697]
[1723395860398,5.8032858,2635.1,2634.5,2.65697]
[1723395860601,5.8032858,2635.1,2634.5,5.31396]
[1723395861003,5.8032858,2635.1,2634.6,2.65692]
[1723395861241,3.1467958,2635.1,2634.7,2.65682]
[1723395862039,3.1467958,2635.1,2634.8,2.65671]
[1723395862543,3.1467958,2635.1,2634.7,2.65679]
[1723395863704,2.3324,2635.0,2634.7,2.65679]
[1723395866107,2.3324,2635.0,2634.7,2.65677]
[1723395867850,2.3324,2635.0,2634.8,2.65674]
[1723395868790,2.75561,2636.0,2634.3,2.73313127]
[1723395868791,2.4211,2635.5,2635.1,2.65643]
[1723395868944,2.4211,2635.5,2635.3,2.65615]
[1723395870549,2.4211,2635.5,2635.1,2.65643]
[1723395871373,2.4211,2635.5,2635.3,2.65622]
[1723395871785,2.4211,2635.5,2635.1,2.65637]
[1723395871786,2.4211,2635.5,2635.1,2.65641]
[1723395872006,2.4211,2635.5,2635.2,2.65629]
[1723395872697,2.4211,2635.5,2635.2,2.65633]
[1723395875206,5.07719,2635.5,2635.0,2.65653]
[1723395875503,2.4211,2635.5,2635.2,2.65633]
[1723395875672,2.4211,2635.8,2634.9,2.65662]
[1723395875874,2.4211,2635.8,2635.3,2.65615]
[1723395876094,2.4211,2635.8,2635.5,2.65603]
[1723395876600,2.4211,2635.8,2635.3,2.65616]
[1723395876901,2.4211,2635.8,2635.5,2.65603]
[1723395878783,2.4211,2635.8,2635.5,5.31202]
[1723395880107,2.4211,2635.8,2635.5,5.31197]
[1723395880507,2.4211,2635.8,2635.7,2.65584]
[1723395880713,2.4211,2636.1,2635.8,2.65568]
[1723395881084,2.4211,2636.1,2635.9,2.65563]
[1723395881992,2.4211,2636.1,2635.8,5.31135]
[1723395882407,2.4211,2636.1,2635.8,2.65567]
[1723395882609,2.4211,2636.1,2635.6,2.65587]
[1723395882610,6.05827174,2636.1,2635.6,2.65587]
[1723395883222,6.05822174,2636.1,2635.7,2.65584]
[1723395883385,5.07653,2636.1,2635.7,2.65584]
[1723395884490,2.4211,2635.9,2635.5,2.65595]
[1723395886229,2.4211,2635.9,2635.3,2.65616]
[1723395886419,2.66321,2635.9,2635.3,2.65616]
[1723395887121,5.31889,2635.9,2635.4,2.65613]
[1723395887762,5.31889,2635.9,2635.0,2.65647]
[1723395887763,2.3198,2635.5,2635.0,2.65647]
[1723395887926,4.97595,2635.4,2634.9,2.65659]
[1723395888253,2.65635,2635.2,2634.7,2.65678]
[1723395888452,2.3198,2635.1,2634.7,2.65678]
[1723395889129,4.97624,2635.1,2634.5,2.65697]
[1723395889325,5.739496,2635.1,2634.6,2.65688]
[1723395889758,5.739516,2635.1,2634.6,2.65694]
[1723395890330,3.083056,2635.1,2634.7,2.65678]
[1723395890537,2.3198,2635.1,2634.7,2.65678]
[1723395890916,2.3198,2635.1,2634.8,2.65674]
[1723395891148,2.3198,2635.1,2635.0,2.65654]
[1723395891345,9.5898,2635.4,2635.1,2.6564]
[1723395892450,9.5898,2635.4,2635.2,2.65633]
[1723395892860,2.3198,2635.4,2635.2,2.65633]
[1723395893278,2.65586,2635.7,2635.4,2.65614]
[1723395893279,2.3198,2635.7,2635.4,2.65614]
[1723395893442,2.65558,2636.0,2635.2,2.65633]
[1723395893443,2.3198,2636.0,2635.2,2.65633]
[1723395893772,2.3198,2636.0,2635.7,5.31155]
[1723395894165,2.3198,2636.0,2635.9,5.31126]
[1723395894480,0.1258174,2636.2,2636.1,2.65543]
[1723395896842,0.1258174,2636.2,2636.1,5.31086]
[1723395897355,0.1258174,2636.2,2636.1,2.65543]
[1723395897877,0.1258174,2636.2,2635.9,2.65554]
[1723395898274,0.1258174,2636.2,2636.0,2.65546]
[1723395900430,2.3198,2636.1,2635.9,2.65554]
[1723395901665,2.3198,2636.1,2635.4,5.02879]
[1723395901666,0.1258174,2636.2,2636.0,2.65544]
[1723395901984,0.1258174,2636.2,2636.1,2.65543]
[1723395902276,0.1258174,2636.2,2636.1,5.31086]
[1723395903077,0.1258174,2636.2,2636.1,2.65543]
[1723395903368,0.1258174,2636.2,2636.0,2.65552]
[1723395903739,0.1258174,2636.2,2635.7,3.0]
[1723395903938,0.1258174,2636.2,2635.8,2.65573]
[1723395904153,0.63590814,2636.2,2635.8,2.65573]
[1723395905165,3.29131814,2636.2,2635.6,2.65586]
[1723395905378,2.3198,2636.1,2635.7,2.65578]
[1723395905677,2.3198,2636.1,2635.8,2.65573]
[1723395906262,2.3198,2636.1,2635.9,2.65558]
[1723395906468,2.3198,2636.1,2635.5,2.65603]
[1723395906469,2.3198,2635.9,2635.5,2.65603]
[1723395906640,2.3198,2635.9,2635.3,2.65617]
[1723395906641,4.97545,2635.9,2635.3,2.65617]
[1723395906842,2.65575,2635.8,2635.3,2.65614]
[1723395907151,4.97544,2635.9,2635.4,2.65612]
[1723395907340,0.497539,2635.8,2635.4,2.65612]
[1723395907542,0.497539,2635.8,2635.5,2.65602]
[1723395908046,0.497539,2635.8,2635.3,2.65614]
[1723395908047,0.497539,2635.8,2635.4,2.65613]
[1723395908258,0.497539,2635.8,2635.3,2.65614]
[1723395908472,2.3394,2635.6,2635.1,2.65635]
[1723395909183,2.3394,2635.6,2634.4,2.94695346]
[1723395909184,2.3394,2635.2,2634.8,5.31337]
[1723395909348,2.65611,2635.5,2634.8,2.65671]
[1723395909349,9.6094,2635.5,2634.8,2.65671]
[1723395909548,9.6094,2635.5,2635.2,2.65626]
[1723395909778,9.6094,2635.5,2635.3,2.65617]
[1723395911996,9.6094,2635.5,2635.2,2.65626]
[1723395912153,10.57034,2635.5,2635.2,2.65626]
[1723395912663,10.57034,2635.5,2635.0,5.31294]
[1723395912879,5.95643,2635.5,2634.8,2.65668]
[1723395913063,4.99549,2635.5,2635.0,2.65653]
[1723395913393,2.3394,2635.5,2635.2,2.65632]
[1723395913602,2.3394,2635.5,2635.0,2.6565]
[1723395913753,4.9955,2635.5,2634.9,2.65655]
[1723395913949,4.9955,2635.5,2635.0,2.65649]
[1723395914267,2.3394,2635.5,2635.2,2.65634]
[1723395915088,2.3394,2635.5,2635.2,2.65629]
[1723395915458,5.22944,2635.5,2635.0,2.65647]
[1723395915901,2.65615,2635.4,2634.8,2.65665]
[1723395916055,0.788548,2635.4,2634.9,2.65657]
[1723395917981,0.788548,2635.4,2635.1,2.65641]
[1723395918963,3.444688,2635.4,2635.0,2.65653]
[1723395919258,0.5784088,2635.3,2634.8,5.31333]
[1723395920065,0.5784088,2635.3,2634.9,2.6566]
[1723395924411,2.3394,2635.2,2634.9,2.6566]
[1723395924922,2.3394,2635.2,2634.8,2.65665]
[1723395925614,2.3394,2635.2,2634.9,2.65664]
[1723395926521,2.3394,2635.2,2634.8,5.31334]
[1723395927024,2.3394,2635.2,2634.9,2.65661]
[1723395927626,2.3394,2635.2,2634.9,5.3132]
[1723395927998,2.3394,2635.2,2634.9,2.65659]
[1723395928521,2.3394,2635.2,2634.8,2.65669]
[1723395928685,2.3394,2635.2,2634.9,2.65659]
[1723395928883,2.3394,2635.2,2635.0,2.65648]
[1723395929587,2.3394,2635.2,2634.9,2.65659]
[1723395930502,2.65644,2635.1,2634.7,2.6568]
[1723395930704,2.65644,2635.1,2634.5,2.65699]
[1723395930705,2.65644,2635.1,2634.6,2.65694]
[1723395931017,2.4952,2635.0,2634.7,2.65682]
[1723395931219,3.0868819,2635.0,2634.8,2.65668]
[1723395931380,2.4952,2635.0,2634.8,2.65668]
[1723395931783,2.4952,2635.0,2634.9,0.05416696]
[1723395931988,2.4952,2635.0,2634.9,2.65664]
[1723395932227,2.4952,2635.0,2634.9,2.70900275]
[1723395932398,2.4952,2635.0,2634.9,0.05236275]
[1723395932719,2.74472,2635.0,2634.9,0.05236275]
[1723395934416,2.74472,2635.0,2634.6,2.65694]
[1723395934602,2.74472,2635.0,2634.4,2.65713]
[1723395934603,5.40127,2635.0,2634.7,0.05252618]
[1723395934806,5.40127,2635.0,2634.5,2.65704]
[1723395935107,0.540127,2634.9,2634.6,0.05103228]
[1723395936616,5.15199,2634.8,2634.6,0.05103228]
[1723395936892,5.15199,2634.8,2634.4,2.65713]
[1723395937091,5.15199,2634.8,2634.7,0.04946622]
[1723395937292,5.15199,2634.8,2634.4,2.65713]
[1723395937628,6.0168087,2634.8,2634.4,2.65713]
[1723395937926,6.0168087,2634.8,2634.5,0.04962967]
[1723395939127,3.3600187,2634.8,2634.5,2.70663967]
[1723395940196,3.3600187,2634.8,2634.5,0.04962967]
[1723395940391,0.60166687,2634.7,2634.5,0.04962967]
[1723395940621,0.60166687,2634.7,2634.4,2.65714]
[1723395941515,0.60166687,2634.7,2634.5,0.04972555]
[1723395941710,0.60166687,2634.7,2634.4,2.65714]
[1723395941893,0.60166687,2634.7,2634.6,0.04964382]
[1723395942228,0.60166687,2634.7,2634.4,2.65714]
[1723395943831,0.60166687,2634.7,2634.5,2.65705]
[1723395944027,2.5002,2634.8,2634.6,2.70606358]
[1723395944218,2.5002,2634.8,2634.6,2.70609358]
[1723395945030,2.5002,2634.8,2634.7,2.65684]
[1723395945234,0.005,2634.8,2634.7,2.70609486]
[1723395947143,0.005,2634.8,2634.7,11.01977486]
[1723395949609,7.27,2635.3,2635.2,5.31268]
[1723395949955,7.27,2635.8,2635.7,5.31168]
[1723395950106,2.5572174,2636.2,2636.1,2.65543]
[1723395950306,0.1258174,2636.2,2636.1,5.31086]
[1723395950912,0.1258174,2636.2,2636.1,5.35861272]
[1723395956344,0.1258174,2636.2,2636.1,8.01404272]
[1723395956562,0.1258174,2636.2,2636.1,11.01404272]
[1723395959020,0.1258174,2636.2,2636.1,13.66947272]
[1723395960446,0.1258174,2636.2,2636.1,11.01404272]
[1723395961953,0.1258174,2636.2,2636.1,8.35861272]
[1723395964277,0.1258174,2636.2,2636.1,11.01404272]
[1723395968372,0.1258174,2636.2,2636.1,13.66947272]
[1723395968639,0.1258174,2636.2,2636.1,14.21947272]
[1723395969885,0.1258174,2636.2,2636.1,11.56404272]
[1723395970259,0.1258174,2636.2,2636.1,11.01404272]
[1723395970945,0.1258174,2636.2,2636.1,8.35861272]
[1723395973757,0.1258174,2636.2,2636.1,2.70318272]
[1723395974059,0.1258174,2636.2,2636.1,5.35861272]
[1723395977300,0.1258174,2636.2,2636.1,2.70318272]